Workbook

Sheet Instructions
B2: LONG-TERM CAPITAL PROJECTIONS TEMPLATE INSTRUCTIONS
A5: Project Table
A6: 1 | B6: Type the department name into the yellow cell below; the department name will automatically be copied to the Template tab.
B7: Department Name
A8: 2 | B8: Project Name and Description - Enter the project name and a brief description of the project. Adjust row heights as required.
A9: 3 | B9: Project Category - Select the appropriate category from the drop down list.
A10: 4 | B10: Enter the total amount (in 000's) requested for each year.
A11: 5 | B11: Financing detail - Enter reference to financing table below including percentage breakdown if less than 100% to a single financing source.
A12: 6 | B12: Notes - Enter reference to notes section below and include any additional information that may be important to decision makers.
A13: 7 | B13: Delete any unused rows.
A14: 8 | B14: Sort projects by project category.
A15: 9 | B15: Add subtotals by Project Category for each year.
A16: 10 | B16: Ensure that the totals add up correctly.
A18: Proposed Financing Sources Table
A19: 1 | B19: Select the appropriate financing from the drop down list.
A20: 2 | B20: Enter the total of each financing source for all projects for each year.
A21: 3 | B21: Verify that total financing equals the total for all projects.
A23: Notes
A24: 1 | B24: Input any relevant notes for specific projects.
A27: Printing
A28: 1 | B28: Print setups have been set up for each tab, minimal change should be required. Pages will print in black and white so yellow data entry cells are not highlighted.
A29: 2 | B29: To print correct page numbers for the budget submission, group the pages that require printing and under file/page setup/page/first page number, type the appropriate starting page number.
A31: Questions
B32: Please call your Financial Planning & Review Analyst with any questions related to this template.
B33: Grant Heather - 204-986-4325
B34: Knight Morton - 204-986-2283
B35: Ryan Marsh - 204-986-7525
B36: Kerry Zakowich - 204-986-2128

Sheet Proj Category & Fin Sources
A1: Project Categories | B1: Financing Sources
A3: Active Transportation Facilities | B3: Building Manitoba Fund
A4: Assessment and Taxation | B4: Canada Strategic Infrastructure Fund
A5: Assiniboine Park | B5: Cash to Capital
A6: Building Communities | B6: Debt
A7: Buses | B7: Developers
A8: City Clerks | B8: Economic Development Reserve
A9: Community Incentive Grant Program | B9: Environmental Projects Reserve
A10: Corporate Support Services | B10: Federal Gas Tax
A11: Fire Paramedic Service | B11: Federal Government Funding
A12: Garbage Collection | B12: Frontage Levy
A13: Land Drainage and Flood Control | B13: General Purpose Reserve (Repayment)
A14: Libraries | B14: Golf Course Reserve
A15: Local Improvements | B15: Interim Financing (Repayment)
A16: Municipal Accommodations | B16: Land Operating Reserve
A17: New Transportation Facilities | B17: Local Street Renewal Reserve
A18: Other | B18: Regional Street Renewal Reserve
A19: Other Streets Projects | B19: Manitoba Winnipeg Infrastructure Program
A20: Parks and Open Space | B20: Manitoba Winnipeg Infrastructure Agreement (MWIA)
A21: Rapid Transit | B21: Prior Years' Surplus/Authorization
A22: Recreation | B22: Provincial Funding for Road Improvements
A23: Regional and Local Streets | B23: Provincial Government Funding
A24: Riverbanks | B24: Public Private Partnership Authorization
A25: Sewage Disposal - Collection | B25: Public Private Partnership Lease Payments
A26: Sewage Disposal - Treatment | B26: Southwest Rapid Transit Corridor - Stage 2 Reserve (formerly Rapid Transit Infrastructure Reserve)
A27: Solid Waste Disposal System - Landfill | B27: Riverbank Management Committee Fund (Fund 002)
A28: Solid Waste Disposal System - Collection | B28: Sewer System Rehabilitation Reserve
A29: Street Improvements | B29: Transit Bus Replacement Reserve
A30: Waterway Crossings and Grade Separations | B30: Transit Retained Earnings
A31: Waterworks - Supply and Treatment | B31: Utilities Retained Earnings
A32: Waterworks - Distribution | B32: Veterans Affairs Canada
A33: Winnipeg Police Service | B33: Waste Diversion Reserve
A34: Winnipeg Golf Services | B34: Watermain Renewal Reserve
A35: Winnipeg Animal Services | B35: Select financing source from drop down list
A36: Winnipeg Parking Authority
A37: Winnipeg Fleet Management
A38: Select category from drop down list

Sheet Sample
A1: Long Term Capital Projections
B3: Department: | C3: Template Department
D4: In $000's
A5: Project Name and Description | C5: Project Category | D5: 2022 | E5: =D5+1 -> 2023 | F5: =E5+1 -> 2024 | G5: =F5+1 -> 2025 | H5: Total | I5: Financing Detail | J5: Note
A6: 1 | B6: Replace roof at West End library (2022) and Transcona library (2024). | C6: Libraries | D6: 1,000 | F6: 1,200 | H6: =SUM(D6:G6) -> 2,200 | I6: 50% - 1, 50% - 2 | J6: 1
A7: 2 | B7: Replace furniture at various library branches. | C7: Libraries | D7: 100 | E7: 1,300 | F7: 100 | G7: 1,300 | H7: =SUM(D7:G7) -> 2,800 | I7: 1
B8: Subtotal - Libraries | D8: =SUBTOTAL(9,D6:D7) -> 1,100 | E8: =SUBTOTAL(9,E6:E7) -> 1,300 | F8: =SUBTOTAL(9,F6:F7) -> 1,300 | G8: =SUBTOTAL(9,G6:G7) -> 1,300 | H8: =SUM(D8:G8) -> 5,000
A9: 3 | B9: Software upgrade - implement phase two of Management Information System. | C9: Other | D9: 200 | H9: =SUM(D9:G9) -> 200 | I9: 1 | J9: 2
B10: Subtotal - Other | D10: =SUBTOTAL(9,D9:D9) -> 200 | E10: =SUBTOTAL(9,E9:E9) -> 0 | F10: =SUBTOTAL(9,F9:F9) -> 0 | G10: =SUBTOTAL(9,G9:G9) -> 0 | H10: =SUM(D10:G10) -> 200
B12: Total | D12: =+D8+D10 -> 1,300 | E12: =+E8+E10 -> 1,300 | F12: =+F8+F10 -> 1,300 | G12: =+G8+G10 -> 1,300 | H12: =+H8+H10 -> 5,200
D14: In $000's
A15: Proposed Financing Sources | D15: =+D5 -> 2022 | E15: =D15+1 -> 2023 | F15: =E15+1 -> 2024 | G15: =F15+1 -> 2025 | H15: Total
A16: 1 | B16: Cash to Capital | D16: 800 | E16: 1,300 | F16: 700 | G16: 1,300 | H16: =SUM(D16:G16) -> 4,100
A17: 2 | B17: Provincial Government Funding | D17: 500 | F17: 600 | H17: 1,100
A18: 3 | H18: 0
A19: 4 | H19: 0
A20: 5 | H20: 0
A21: 6 | H21: 0
A22: 7 | H22: 0
A23: 8 | H23: 0
A24: 9 | H24: 0
A25: 10
B26: Total | D26: =SUM(D16:D25) -> 1,300 | E26: =SUM(E16:E25) -> 1,300 | F26: =SUM(F16:F25) -> 1,300 | G26: =SUM(G16:G25) -> 1,300 | H26: =SUM(H16:H25) -> 5,200
A28: Notes
A29: 1 | B29: Note related to project 1
A30: 2 | B30: Note related to project 3

Sheet Template
A1: Long Term Capital Projections
B3: Department: | C3: =+Instructions!B7 -> Department Name
D4: In $000's
A5: Project Name and Description | C5: Project Category | D5: =Sample!D5 -> 2022 | E5: =Sample!E5 -> 2023 | F5: =Sample!F5 -> 2024 | G5: =Sample!G5 -> 2025 | H5: Total | I5: Financing Detail | J5: Note
A6: 1 | B6: Project 1 | C6: Select category from drop down list | H6: =SUM(D6:G6) -> 0
A7: 2 | B7: Project 2 | C7: Select category from drop down list | H7: =SUM(D7:G7) -> 0
A8: 3 | B8: Project 3 | C8: Select category from drop down list | H8: 0
A9: 4 | B9: Project 4 | C9: Select category from drop down list | H9: 0
A10: 5 | B10: Project 5 | C10: Select category from drop down list | H10: 0
A11: 6 | B11: Project 6 | C11: Select category from drop down list | H11: 0
A12: 7 | B12: Project 7 | C12: Select category from drop down list | H12: 0
A13: 8 | B13: Project 8 | C13: Select category from drop down list | H13: 0
A14: 9 | B14: Project 9 | C14: Select category from drop down list | H14: 0
A15: 10 | B15: Project 10 | C15: Select category from drop down list | H15: 0
A16: 11 | B16: Project 11 | C16: Select category from drop down list | H16: 0
A17: 12 | B17: Project 12 | C17: Select category from drop down list | H17: 0
A18: 13 | B18: Project 13 | C18: Select category from drop down list | H18: 0
A19: 14 | B19: Project 14 | C19: Select category from drop down list | H19: 0
A20: 15 | B20: Project 15 | C20: Select category from drop down list | H20: 0
H21: =SUM(D21:G21) -> 0
B22: Total | D22: =SUM(D6:D21) -> 0 | E22: =SUM(E6:E21) -> 0 | F22: =SUM(F6:F21) -> 0 | G22: =SUM(G6:G21) -> 0 | H22: =SUM(H6:H21) -> 0
D24: In $000's
A25: Proposed Financing Sources | D25: =Sample!D15 -> 2022 | E25: =Sample!E15 -> 2023 | F25: =Sample!F15 -> 2024 | G25: =Sample!G15 -> 2025 | H25: Total
A26: 1 | B26: Select financing source from drop down list | H26: =SUM(D26:G26) -> 0
A27: 2 | B27: Select financing source from drop down list | H27: 0
A28: 3 | B28: Select financing source from drop down list | H28: 0
A29: 4 | B29: Select financing source from drop down list | H29: 0
A30: 5 | B30: Select financing source from drop down list | H30: 0
A31: 6 | B31: Select financing source from drop down list | H31: 0
A32: 7 | B32: Select financing source from drop down list | H32: 0
A33: 8 | B33: Select financing source from drop down list | H33: 0
A34: 9 | B34: Select financing source from drop down list | H34: 0
A35: 10 | B35: Select financing source from drop down list | H35: 0
B36: Total | D36: =SUM(D26:D35) -> 0 | E36: =SUM(E26:E35) -> 0 | F36: =SUM(F26:F35) -> 0 | G36: =SUM(G26:G35) -> 0 | H36: =SUM(H26:H35) -> 0
A38: Notes
